Cogmind - Beta 10.2 @@@ ROGUE MODE // 2021.03.28 @ 17:33:03 Player: ChromeKnight Result: Destroyed by as-60918 with Assembled Rifle Performance ------------- Evolutions (0) 0 Regions Visited (4) 800 Robots Destroyed (7) 35 Value Destroyed (251) 251 Prototype IDs (1) 20 Alien Tech Used (0) 0 Bonus (7) 7 TOTAL SCORE: 1113 Bonus ------- Follower Combat Kills 7 Cogmind --------- Core Integrity 0/250 Matter 300/300 Energy 100/100 System Corruption 0% Temperature Cool (0) Movement Walking (140) Location -9/Mines Parts ------- > --- POWER (1) -------- (None) > --- PROPULSION (2) --- Makeshift Leg > --- UTILITY (2) ------ Medium Storage Unit > --- WEAPON (2) ------- AWS/Gauss > --- INVENTORY (8) ---- High-capacity Matter Pod (200) Makeshift Cloaking Device Makeshift System Shield Makeshift Shrapnel Gun Mining Claw Mining Claw Peak State ------------ > --- POWER ------------ Light Nuclear Core > --- PROPULSION ------- Makeshift Leg > --- UTILITY ---------- Small Storage Unit > --- WEAPON ----------- AWS/Gauss > --- INVENTORY -------- High-capacity Matter Pod Makeshift System Shield Makeshift Shrapnel Gun Mining Claw Mining Claw Mining Claw [Rating: 25] Favorites ----------- Power Light Nuclear Core Engine Ion Engine Power Core Light Nuclear Core Propulsion Wheel Leg Makeshift Leg Wheel Wheel Utility Small Storage Unit Storage Small Storage Unit Weapon Mining Claw Ballistic Gun AWS/Gauss Slashing Weapon Mining Claw Build | -11 -10 -10 -10 -9 ------- Run | Scr Mat Min Exi Min Slots Evolved . | . . . . . Power . | . . . . . Propulsion . | . . . . . Utility . | . . . . . Weapon . | . . . . . Parts Attached 17 | 6 3 2 6 . Power 2 | 1 . 1 . . Engine 1 | 1 . . . . Core 1 | . . 1 . . Reactor . | . . . . . Propulsion 3 | 2 . . 1 . Treads . | . . . . . Leg 1 | . . . 1 . Wheel 2 | 2 . . . . Hover . | . . . . . Flight . | . . . . . Utility 2 | 1 . . 1 . Device . | . . . . . Storage 2 | 1 . . 1 . Processor . | . . . . . Hackware . | . . . . . Protection . | . . . . . Artifact . | . . . . . Weapon 10 | 2 3 1 4 . Energy Gun . | . . . . . Energy Cannon . | . . . . . Ballistic Gun 5 | 2 1 . 2 . Ballistic Cannon . | . . . . . Launcher . | . . . . . Special Weapon . | . . . . . Impact Weapon . | . . . . . Slashing Weapon 5 | . 2 1 2 . Piercing Weapon . | . . . . . Special Melee Weapon . | . . . . . Unidentified Prototypes 1 | . . . 1 . Parts Lost 1 | . . . . 1 Power 1 | . . . . 1 Propulsion . | . . . . . Utility . | . . . . . Weapon . | . . . . . Highest Loss Streak 1 | . . . . 1 Average Slot Usage (%) 68 | . 85 85 66 56 Engine 1 | . 14 1 . . Core 12 | . . 12 14 13 Leg 7 | . . . 9 14 Wheel 12 | . 28 28 10 . Storage 14 | . 14 14 14 14 Ballistic Gun 8 | . 3 . 10 14 Slashing Weapon 10 | . 24 28 8 . Naked Turns . | . . . . . Heaviest Build 23 | 11 13 13 23 23 Greatest Support 20 | 20 20 20 20 20 Greatest Overweight (x) 1 | . . . 1 1 Average Overweight (x) . | . . . . . Largest Inventory Capacity 10 | 6 6 6 10 8 Average Capacity 6 | 5 6 6 6 8 Most Carried 8 | 1 6 6 8 6 Average Carried 5 | . 4 5 5 6 Final Capacity 8 | 6 6 6 8 8 Final Carried 6 | 1 6 6 6 6 Class Distribution -------------------- 100% | Mutant Dominant Class ---------------- Mutant | -10/Materials Mutant | -10/Mines Mutant | -10/Exiles Mutant | -9/Mines Resources | -11 -10 -10 -10 -9 ----------- Run | Scr Mat Min Exi Min Matter Collected 380 | 179 . 141 60 . Remotely . | . . . . . Salvage Created 415 | . . 104 95 216 Parts 21 | . . 6 6 9 Haulers Intercepted . | . . . . . Recyclers Shooed . | . . . . . Parts Field Recycled . | . . . . . Retrieved Matter . | . . . . . Parts Self-Destructed . | . . . . . Prevented . | . . . . . Kills | -11 -10 -10 -10 -9 ------- Run | Scr Mat Min Exi Min Combat Hostiles Destroyed 14 | . . 2 1 11 Melee 2 | . . 2 . . Guns 12 | . . . 1 11 Classes Destroyed 4 | . . 1 . 3 Swarmer 2 | . . . . 2 Grunt 3 | . . 2 1 . Demolisher 2 | . . . . 2 Assembled 7 | . . . . 7 Best Kill Streak 9 | . . 1 1 9 Combat Bots Only 9 | . . 1 1 9 Max Kills in Single Turn 1 | . . 1 1 1 Gunslinging . | . . . . . Exploded . | . . . . . Melee 1 | . . 1 . . Uniques/NPCs Destroyed . | . . . . . Combat | -11 -10 -10 -10 -9 -------- Run | Scr Mat Min Exi Min Damage Taken 661 | . . 175 . 486 Core 261 | . . 54 . 207 Absorbed by Shields . | . . . . . Core Remaining (%) 100 | 100 . . . . Volleys Fired . | . . . . . Largest . | . . . . . Hottest . | . . . . . Shots Fired 43 | . . . 1 42 Gun 43 | . . . 1 42 Cannon . | . . . . . Launcher . | . . . . . Special . | . . . . . Kinetic 43 | . . . 1 42 Thermal . | . . . . . Explosive . | . . . . . Electromagnetic . | . . . . . Robot Hit Streak 10 | . . . 1 10 Robot Miss Streak 3 | . . . . 3 Penetration Max . | . . . . . Secondary Targets . | . . . . . Autonomous 43 | . . . 1 42 Shots Hit Robots 42 | . 1 5 5 31 Core Hits 18 | . . 3 2 13 Critical Hits . | . . . . . Critical Kills . | . . . . . Critical Parts Destroyed . | . . . . . Melee Attacks 15 | . 1 10 4 . Impact . | . . . . . Slashing 15 | . 1 10 4 . Piercing . | . . . . . Sneak Attacks . | . . . . . Combat Hostiles . | . . . . . Follow-up Attacks 2 | . . 1 1 . Damage Inflicted 1459 | . . 128 327 1004 Guns 1034 | . . . 30 1004 Cannons . | . . . . . Explosions . | . . . . . Melee 425 | . . 128 297 . Ramming . | . . . . . Kinetic 1034 | . . . 30 1004 Thermal . | . . . . . Explosive . | . . . . . Electromagnetic . | . . . . . Impact . | . . . . . Slashing 425 | . . 128 297 . Piercing . | . . . . . Highest Corruption . | . . . . . Average Corruption . | . . . . . Corruption Purged . | . . . . . Overload Shots . | . . . . . Overflow Damage 7 | . . . 7 . Projectiles . | . . . . . Explosions . | . . . . . Melee 7 | . . . 7 . Knockbacks . | . . . . . Impact . | . . . . . Kinetic . | . . . . . Secondary . | . . . . . Self-Inflicted Damage . | . . . . . Shots . | . . . . . Rammed . | . . . . . Targets Rammed . | . . . . . Kicked . | . . . . . Crushed . | . . . . . Highest Temperature 2 | . . . . 2 Average Temperature 2 | . . . . 2 Received Heat Transfer 125 | . . 105 . 20 Siege Activations . | . . . . . Robots Corrupted . | . . . . . Combat Hostiles . | . . . . . Parts Fried . | . . . . . Impact Corruptions . | . . . . . Robots Melted . | . . . . . Combat Hostiles . | . . . . . Parts Melted . | . . . . . Heat Transferred . | . . . . . Parts Sabotaged . | . . . . . Parts Stolen . | . . . . . Parts Stripped . | . . . . . Power Chain Reactions . | . . . . . Missiles Intercepted . | . . . . . Alert | -11 -10 -10 -10 -9 ------- Run | Scr Mat Min Exi Min Peak Influence 101 | . 15 70 . 101 Initial 5 | . . 5 . . Average 63 | . 3 65 . 88 Maximum Alert Level . | . . . . . Low Security (%) 100 | 100 100 100 . 100 Level 1 . | . . . . . Level 2 . | . . . . . Level 3 . | . . . . . Level 4 . | . . . . . Level 5 . | . . . . . High Security . | . . . . . Max Security . | . . . . . Squads Dispatched . | . . . . . Investigation . | . . . . . Extermination . | . . . . . Reinforcement . | . . . . . Assault . | . . . . . Garrison . | . . . . . Intercept . | . . . . . Construction Impeded . | . . . . . Haulers Reinforced . | . . . . . Stealth | -11 -10 -10 -10 -9 --------- Run | Scr Mat Min Exi Min Distress Signals . | . . . . . Communications Jammed . | . . . . . Distress Signals . | . . . . . Times Spotted 18 | . 1 2 . 15 Peak Tracking Total 7 | . 1 2 . 7 Tactical Retreats . | . . . . . Traps | -11 -10 -10 -10 -9 ------- Run | Scr Mat Min Exi Min Traps Triggered . | . . . . . Indirectly . | . . . . . Trap Hack Attempts . | . . . . . Triggered . | . . . . . Disarmed . | . . . . . Reprogrammed . | . . . . . Reused . | . . . . . Traps Extracted . | . . . . . Installed . | . . . . . Triggered . | . . . . . Machines | -11 -10 -10 -10 -9 ---------- Run | Scr Mat Min Exi Min Machines Disabled 1 | . . . . 1 Max in Single Turn 1 | . . . . 1 Machines Sabotaged . | . . . . . Garrisons Compromised . | . . . . . Overloaded Fab Kills . | . . . . . Fab Network Shutdowns . | . . . . . Hacking | -11 -10 -10 -10 -9 --------- Run | Scr Mat Min Exi Min Machines Accessed 1 | . 1 . . . Terminals 1 | . 1 . . . Fabricators . | . . . . . Repair Stations . | . . . . . Recycling Units . | . . . . . Scanalyzers . | . . . . . Garrison Access . | . . . . . Total Hacks 1 | . 1 . . . Successful . | . . . . . Failed 1 | . 1 . . . Catastrophic 1 | . 1 . . . Database Lockouts . | . . . . . Manual 2 | . 1 . 1 . Terminals 1 | . 1 . . . Fabricators . | . . . . . Repair Stations . | . . . . . Recycling Units . | . . . . . Scanalyzers . | . . . . . Garrison Access . | . . . . . Terminal Hacks . | . . . . . Fabricator Hacks . | . . . . . Repair Station Hacks . | . . . . . Recycling Unit Hacks . | . . . . . Scanalyzer . | . . . . . Garrison Access Hacks . | . . . . . Unauthorized Hacks . | . . . . . Terminals . | . . . . . Fabricators . | . . . . . Repair Stations . | . . . . . Recycling Units . | . . . . . Scanalyzers . | . . . . . Garrison Access . | . . . . . Data Cores Recovered . | . . . . . Used . | . . . . . Hacking Detections 1 | . 1 . . . Full Trace Events . | . . . . . Feedback Events . | . . . . . Feedback Blocked . | . . . . . Robot Schematics Acquired . | . . . . . Robots Built . | . . . . . Matter . | . . . . . Time . | . . . . . Total Robot Build Rating . | . . . . . Part Schematics Acquired . | . . . . . Parts Built . | . . . . . Matter . | . . . . . Time . | . . . . . Total Part Build Rating . | . . . . . Parts Repaired . | . . . . . Time . | . . . . . Parts Recycled . | . . . . . Recycled Matter . | . . . . . Retrieved Matter . | . . . . . Retrieved Components . | . . . . . Parts Scanalyzed . | . . . . . Part Schematics Acquired . | . . . . . Parts Damaged . | . . . . . Bothacking | -11 -10 -10 -10 -9 ------------ Run | Scr Mat Min Exi Min Used RIF Installer . | . . . . . Robots Hacked . | . . . . . Non-combat . | . . . . . Combat . | . . . . . Robot Hacks Applied . | . . . . . Relay Couplers Released . | . . . . . Robots Rewired 3 | . . . 3 . Allies Hacked . | . . . . . Hacks Repelled . | . . . . . Allies | -11 -10 -10 -10 -9 -------- Run | Scr Mat Min Exi Min Total Allies 3 | . . . 3 . Largest Group 3 | . . . 3 3 Highest-Rated Group 50 | . . . 50 50 Highest-Rated Ally 21 | . . . 21 21 Total Orders . | . . . . . Ally Attacks 13 | . . . . 13 Total Damage 95 | . . . . 95 Kills 3 | . . . . 3 Allies Corrupted . | . . . . . Allies Melted . | . . . . . Intel | -11 -10 -10 -10 -9 ------- Run | Scr Mat Min Exi Min Robot Analysis Total . | . . . . . Derelict Logs Recovered 2 | . . 1 . 1 Drone Launches . | . . . . . Drone Recoveries . | . . . . . Exploration | -11 -10 -10 -10 -9 ------------- Run | Scr Mat Min Exi Min Turns Passed 1347 | 47 83 228 695 294 Spaces Moved 1065 | 48 86 220 537 174 Core 3 | 3 . . . . Treads . | . . . . . Legs 463 | . . . 289 174 Wheels 599 | 45 86 220 248 . Hover . | . . . . . Flight . | . . . . . Fastest Speed 50 | 50 80 80 80 140 Average Speed 112 | 78 80 80 116 168 Slowest Speed 170 | 80 80 80 170 170 Overloaded Moves . | . . . . . Propulsion Burnouts . | . . . . . Robots Hopped . | . . . . . Cave-ins Triggered . | . . . . . Exploration Rate (%) 40 | 3 16 47 89 45 Regions Visited 4 Branch Regions 3 Pre-discovered Areas 1 | . . 1 . . Known Exits Taken . | . . . . . Unknown Exits Taken 4 | 1 1 1 1 . Scrap Searched . | . . . . . Spaces Dug . | . . . . . Terrain Destroyed 38 | . . . . 38 Melee . | . . . . . Projectile 38 | . . . . 38 AOE . | . . . . . Terrain Rammed . | . . . . . Walls Destroyed . | . . . . . Machines Disabled . | . . . . . Actions | -11 -10 -10 -10 -9 --------- Run | Scr Mat Min Exi Min Total 1182 | 54 98 253 603 174 Wait 20 | . . 20 . . Move 1061 | 47 85 219 536 174 Hop . | . . . . . Pick Up 12 | 1 6 1 4 . Fast Attach 12 | 6 2 1 3 . Attach 4 | . 1 . 3 . Detach 2 | . . . 2 . Swap 1 | . . 1 . . Drop 14 | . 3 2 9 . Fire . | . . . . . Melee 13 | . 1 9 3 . Ram . | . . . . . Kick . | . . . . . Crush . | . . . . . Escape Stasis . | . . . . . Rewire 43 | . . . 43 . Trap . | . . . . . Miscellaneous . | . . . . . Route ------- -11/Scrapyard -10/Materials -10/Mines (discovered 3 exits: [*Mat x2] / *Exi) -10/Exiles -9/Mines (discovered 2 exits: *Mat x2) History --------- Turn | Location | Event 12 | -11/Scrapyard | Discovered new exit (range 15) 48 | -11/Scrapyard | Entered Materials 110 | -10/Materials | Discovered new exit (range 8) 131 | -10/Materials | Entered Mines 216 | -10/Mines | Discovered new exit (range 9) 290 | -10/Mines | Learned location of Storage (-7) 305 | -10/Mines | Build established: Mutant 326 | -10/Mines | Discovered new exit (range 5) 355 | -10/Mines | Deemed a non-threat by the Exiles lab entrance 356 | -10/Mines | Discovered new exit (range 5) 359 | -10/Mines | Entered Exiles 359 | -10/Exiles | Found Exiles lab destroyed 503 | -10/Exiles | Opened EX-Vault 506 | -10/Exiles | Found Prototype Ballistic Gun 506 | -10/Exiles | Identified AWS/Gauss 808 | -10/Exiles | Discovered new exit (range 10) 1054 | -10/Exiles | Entered Mines 1054 | -9/Mines | Accompanied by 3 allies 1170 | -9/Mines | Discovered new exit (range 14) 1280 | -9/Mines | Assembled infested the area 1284 | -9/Mines | Identified exit to Materials 1285 | -9/Mines | Assisted by a Guerilla fighting off Assembled 1309 | -9/Mines | Core integrity fell below 50% 1329 | -9/Mines | Core integrity fell below 20% 1348 | -9/Mines | Destroyed by as-60918 with Assembled Rifle Last Messages --------------- 01324_ Slug penetrates as-54233. 01324_ as-54233 destroyed. 01325_ Slug penetrates as-87819. 01325_ as-87819 destroyed. 01327_ Slug penetrates Wall. 01327_ Slug penetrates Earth. 01328_ Slug penetrates as-99902. 01328_ as-99902 destroyed. 01329_ as-66866 destroyed. 01332_ as-30651 destroyed. 01339_ Lgt. Nuclear Core destroyed. 01340_ Slug penetrates as-75205. 01340_ as-75205 destroyed. 01341_ as-33625 destroyed. 01343_ Slug penetrates as-60918. 01344_ Slug penetrates Earth. 01345_ Slug penetrates Wall. 01348_ The unstable cave ceiling collapses. 01348_ Slug penetrates as-60918. 01348_ Slug penetrates Earth. Map ----- +----------------------------------------------------+ | | | | | | | | | | | | | | | ?????????????????????????????????????????????????? | | ?????????????????????????????#####???????????????? | | ????????????????????????????## #####?????####### | | ????????????????????????????# ##???## | | ????????????????????????????# #??## < | | ????????????????????????????## ## #### | | ????????????????? ??????????# ### ## | | ??????????????## ###????????# ## | | ?????????????? #????????# ### | | ??????????????=%%=% #????????### #?## | | ??????????###?## !% #????????### ##?### | | ???########"; # %%% #???????## r ##??## | | ???# ; !=%*##??????## #???### | | ???# # =%=[=##??#### #??##?# ## | | ???# ^# # [ ##### % #?## ## ##? | | ???# # ^ !=%*|%= #?# ##?? | | ???#^ ## % %]] !!* ##?## #??? | | ???# ^ % = ### ##???## ##?? | | ???### % a @##?# #?????## #?? | | ?????## ##??# #??????# #?? | | ??????##### ; ### ##???## #?????# ##? | | ??????????## ####; ###?????## #?????# ## | | ???????????## %% #????????## #???## # | | ????????????# !! #;;# #??????????# ???# # | | ????????????## ##### #??????????? ??# # | | ?????????????## #???# #??????????? #?# # | | ??????????????# ??? ???????????# ##?## ## | | ??????????????# ?? ????????????###???## ## | | ??????????????#####? ???????????????????### # | | ???????????????????? ?????????????????????## | | ????????????????????# ??????????????????????## | | ????????????????????? #???????????????????????## | | ????????????????????? ????????????????????????## | | ????????????????????? ????????????????????????# | | ????????????????????? ????????????????????????# | | ?????????????????????#????????????????????????## | | ???????????????????????????????????????????????### | | ?????????????????????????????????????????????????? | | ?????????????????????????????????????????????????? | | ?????????????????????????????????????????????????? | | ?????????????????????????????????????????????????# | | ?????????????????????????????????????????????????# | | ?????????????????????????????????????????????????# | +----------------------------------------------------+ Best States ------------- Heat Dissipation 25 Energy Generation 14 Energy Capacity 250 Matter Stores 300 Matter Capacity 300 Sight Range 16 Terrain Scan Density 10 Evasion (%) 44 Item Schematics ----------------- None Robot Schematics ------------------ None Fabricated ------------ Nothing Alien Tech Used ----------------- None Achievements -------------- None Challenges ------------ None Game ------ Seed SurveybotDecoderDerivative Manual? 0 Play Time 00:07:45 Cumulative 103.4 hours Start 2021.03.28 @ 17:24:50 End 2021.03.28 @ 17:33:03 Sessions 1 Manual Loads 0 Difficulty Rogue Special Mode None Game No. 254 Rogue 101 Adventurer 148 Explorer 5 Win Type - Total 1 Types 1/0/0/0/0/0/0/0/0 Lore% 59 Gallery% 67 Achievement% 53 Wizard Run 0 Options --------- ASCII 0 Keyboard 0 Movement Numpad Keybinds 0 Fullscreen 1 Font 18/CogNarrow Map View 76x50 Tactical HUD 1 Map Filters NONE Filters NONE Steam 1 RUN: a8e33d19-067f-4e66-8f81-58b37e540480